bitfinex/quotes_BTCUSD_20250508
["timestamp","ask_amount","ask_price","bid_price","bid_amount"]
[1746701571174,0.0342,99853.0,99852.0,0.02816144]
[1746701571372,0.0342,99853.0,99852.0,0.0332291]
[1746701572528,0.13486692,99853.0,99852.0,0.02816144]
[1746701574903,0.33516135,99853.0,99852.0,0.02816144]
[1746701576301,0.43387157,99853.0,99852.0,0.02816144]
[1746701576760,0.43387157,99853.0,99852.0,0.00938784]
[1746701577521,0.20030646,99847.0,99846.0,0.06173514]
[1746701577720,0.33367338,99847.0,99846.0,0.06173514]
[1746701577971,0.33367338,99847.0,99846.0,0.06681135]
[1746701578370,0.33367338,99847.0,99846.0,0.00534926]
[1746701580159,0.4343403,99847.0,99846.0,0.00534926]
[1746701580566,0.23403384,99847.0,99846.0,0.00534926]
[1746701581795,0.4343403,99847.0,99846.0,0.00534926]
[1746701582539,0.33367338,99847.0,99846.0,0.00534926]
[1746701587307,0.33367338,99847.0,99846.0,0.00027305]
[1746701588288,0.33367338,99847.0,99846.0,0.00727305]
[1746701588685,0.33367338,99847.0,99846.0,0.01327305]
[1746701589022,0.33367338,99847.0,99846.0,0.00027305]
[1746701589456,0.33367338,99847.0,99846.0,0.00527305]
[1746701589794,0.37373284,99847.0,99846.0,0.00527305]
[1746701590205,0.37373284,99847.0,99846.0,0.01127305]
[1746701590682,0.33367338,99847.0,99846.0,0.01127305]
[1746701593016,0.18044814,99847.0,99846.0,0.01127305]
[1746701593221,0.28111506,99847.0,99846.0,0.01127305]
[1746701596128,0.31331506,99847.0,99846.0,0.01127305]
[1746701598068,0.33336506,99847.0,99846.0,0.01127305]
[1746701598280,0.40874449,99847.0,99846.0,0.01127305]
[1746701602573,0.21035906,99830.0,99827.0,0.34]
[1746701602798,0.21035906,99830.0,99829.0,0.34]
[1746701602948,0.21035906,99830.0,99829.0,3.268138]
[1746701603148,0.21035906,99830.0,99829.0,3.27324779]
[1746701603952,0.21135906,99830.0,99829.0,3.27324779]
[1746701604585,0.21135906,99830.0,99829.0,3.28648003]
[1746701606441,0.21135906,99830.0,99829.0,3.27445103]
[1746701606813,0.10435906,99830.0,99829.0,3.22633303]
[1746701607268,0.10435906,99830.0,99829.0,0.35834203]
[1746701607482,0.10435906,99830.0,99829.0,0.01834203]
[1746701607712,0.10435906,99830.0,99829.0,3.15716503]
[1746701610142,0.10435906,99830.0,99829.0,3.14012303]
[1746701610357,0.001,99830.0,99829.0,3.14012303]
[1746701610658,0.20134057,99830.0,99829.0,3.14012303]
[1746701614103,0.19434057,99830.0,99829.0,3.14012303]
[1746701615980,0.19534057,99830.0,99829.0,3.14012303]
[1746701616586,0.19534057,99830.0,99829.0,0.35834203]
[1746701616791,0.19534057,99830.0,99829.0,3.20728703]
[1746701617390,0.19534057,99830.0,99829.0,2.39330303]
[1746701618432,0.19534057,99830.0,99829.0,2.36122503]
[1746701618955,0.19534057,99830.0,99829.0,0.35834203]
[1746701619177,0.19534057,99830.0,99829.0,2.40934203]
[1746701619387,0.19534057,99830.0,99829.0,2.39330303]
[1746701619934,0.19534057,99830.0,99829.0,2.34418303]
[1746701623529,0.001,99830.0,99829.0,2.34418303]
[1746701623766,0.001,99830.0,99829.0,2.56082561]
[1746701624247,0.001,99830.0,99829.0,2.57702561]
[1746701625983,0.20033576,99833.0,99830.0,0.5403391]
[1746701626353,0.20033576,99833.0,99831.0,0.00517309]
[1746701626776,0.21035248,99833.0,99831.0,0.00517309]
[1746701627197,0.21535248,99833.0,99831.0,0.00517309]
[1746701627417,0.21335248,99833.0,99831.0,0.00517309]
[1746701627640,0.005,99833.0,99832.0,0.23333656]
[1746701627840,0.005,99833.0,99832.0,0.40173956]
[1746701628085,0.005,99833.0,99832.0,0.40691551]
[1746701628321,0.002,99833.0,99832.0,0.40691551]
[1746701628677,0.005,99833.0,99832.0,0.40691551]
[1746701629177,0.002,99833.0,99832.0,0.40691551]
[1746701629378,0.21033665,99840.0,99836.0,0.20032761]
[1746701629590,0.2003231,99839.0,99836.0,0.20032761]
[1746701629727,0.21033665,99840.0,99837.0,0.205469]
[1746701629938,0.21033665,99840.0,99837.0,0.00514271]
[1746701630295,0.20032292,99839.0,99838.0,0.00514557]
[1746701630474,0.20032292,99839.0,99837.0,3.684587]
[1746701630676,0.20032292,99839.0,99838.0,0.00514271]
[1746701631225,0.20032292,99839.0,99836.0,0.21034403]
[1746701631414,0.20032292,99839.0,99838.0,0.00514557]
[1746701632946,0.2103423,99838.0,99835.0,0.210347]
[1746701633139,0.2103423,99838.0,99836.0,3.6896669]
[1746701633378,0.2103423,99838.0,99837.0,3.684587]
[1746701633774,0.2103423,99838.0,99837.0,3.68966465]
[1746701634387,0.2133423,99838.0,99837.0,3.68966465]
[1746701634540,0.003,99838.0,99837.0,3.68966465]
[1746701634765,0.01001582,99842.0,99837.0,3.90000747]
[1746701634966,0.01001592,99841.0,99838.0,0.0165]
[1746701635157,0.20032225,99840.0,99838.0,0.0165]
[1746701635352,0.20032225,99840.0,99839.0,0.00506906]
[1746701635555,0.01001562,99844.0,99840.0,0.21033473]
[1746701635767,0.20031462,99843.0,99841.0,0.0050805]
[1746701636312,0.01001572,99843.0,99839.0,0.01001612]
[1746701636462,0.20031716,99842.0,99840.0,0.00507764]
[1746701636686,0.21033195,99843.0,99840.0,0.20539745]
[1746701636888,0.20031694,99842.0,99840.0,0.00507764]
[1746701637108,0.21033276,99842.0,99841.0,0.005]
[1746701637431,0.21033276,99842.0,99841.0,0.0100805]
[1746701638044,0.21033276,99842.0,99841.0,0.0050805]
[1746701638245,0.21033276,99842.0,99841.0,0.0100805]
[1746701638474,0.21033276,99842.0,99841.0,0.005]
[1746701638674,0.21033276,99842.0,99841.0,0.01008337]
[1746701638882,0.21033276,99842.0,99841.0,0.01]
[1746701639353,0.21033276,99842.0,99841.0,0.0150805]
[1746701640286,0.21033276,99842.0,99841.0,0.01]
[1746701641305,0.21033276,99842.0,99841.0,0.01508909]
[1746701641904,0.21033276,99842.0,99841.0,0.01]
[1746701642269,0.21033276,99842.0,99841.0,0.03381008]
[1746701642894,0.21033276,99842.0,99841.0,0.04318043]
[1746701643529,0.20032483,99838.0,99834.0,0.07251179]
[1746701643737,0.21034105,99838.0,99835.0,3.69882945]
[1746701643947,0.21034105,99838.0,99836.0,3.684587]
[1746701644388,0.21034105,99838.0,99837.0,0.00423452]
[1746701644686,0.21034105,99838.0,99837.0,3.684587]
[1746701644903,0.01001632,99837.0,99834.0,3.492247]
[1746701645107,0.01001642,99836.0,99832.0,3.69460382]
[1746701645248,0.20033262,99834.0,99833.0,3.684587]
[1746701645438,0.20033262,99834.0,99832.0,3.684587]
[1746701645646,0.20033656,99832.0,99831.0,5.518877]
[1746701646785,0.20233656,99832.0,99831.0,5.518877]
[1746701647732,0.27264458,99832.0,99831.0,2.672616]
[1746701647935,0.30484458,99832.0,99831.0,0.001]
[1746701648936,0.30284458,99832.0,99831.0,0.001]
[1746701649146,0.30284458,99832.0,99831.0,0.002]
[1746701649357,0.30284458,99832.0,99831.0,0.001]
[1746701649564,0.23753656,99832.0,99831.0,0.001]
[1746701649766,0.24153656,99832.0,99831.0,0.001]
[1746701670676,0.02051039,99824.0,99822.0,0.35001783]
[1746701671212,0.01351039,99824.0,99823.0,0.00428689]
[1746701671775,0.01551039,99824.0,99823.0,0.00428689]
[1746701672167,0.01451039,99824.0,99823.0,0.00428689]
[1746701672449,0.01351039,99824.0,99823.0,0.00428689]
[1746701672870,0.01451039,99824.0,99823.0,0.00428689]
[1746701673593,0.01751039,99824.0,99823.0,0.00428689]
[1746701675329,0.01751039,99824.0,99823.0,0.21784426]
[1746701677735,0.01751039,99824.0,99823.0,0.23364426]
[1746701678094,0.01051039,99824.0,99823.0,0.25240092]
[1746701678884,0.01051039,99824.0,99823.0,0.23660092]
[1746701680388,0.01051039,99824.0,99823.0,0.21784426]
[1746701681772,0.01001732,99827.0,99824.0,0.21036836]
[1746701682114,0.01001732,99827.0,99825.0,0.00427976]
[1746701682971,0.01101732,99827.0,99825.0,0.00427976]
[1746701683152,0.01401732,99827.0,99825.0,0.00427976]
[1746701683358,0.004,99827.0,99825.0,0.20462887]
[1746701683578,0.004,99827.0,99826.0,0.2003486]
[1746701683757,0.001,99827.0,99826.0,0.20462255]
[1746701683954,0.004,99827.0,99826.0,0.20462255]
[1746701684140,0.003,99827.0,99826.0,0.20462255]
[1746701684342,0.004,99827.0,99826.0,0.20462255]
[1746701684585,0.21036034,99829.0,99826.0,0.20462255]
[1746701684785,0.003,99827.0,99826.0,0.20462255]
[1746701684983,0.004,99827.0,99825.0,0.00725454]
[1746701685238,0.004,99827.0,99826.0,0.2003486]
[1746701685463,0.00701712,99829.0,99827.0,0.20034632]
[1746701685946,0.200343,99829.0,99826.0,0.01001743]
[1746701686150,0.21036012,99829.0,99826.0,0.01001743]
[1746701686729,0.21236012,99829.0,99826.0,0.01001743]
[1746701687141,0.21236012,99829.0,99826.0,0.210366]
[1746701687358,0.21336012,99829.0,99826.0,0.210366]
[1746701687542,0.20334271,99829.0,99826.0,0.210366]
[1746701687800,0.20234271,99829.0,99826.0,0.210366]
[1746701688011,0.20334271,99829.0,99826.0,0.210366]
[1746701690892,0.21335983,99829.0,99826.0,0.01001743]
[1746701691777,0.21335983,99829.0,99826.0,0.21036537]
[1746701691980,0.003,99829.0,99828.0,0.23154459]
[1746701692150,0.003,99829.0,99828.0,4.25613159]
[1746701692737,0.001,99829.0,99828.0,4.25613159]
[1746701692946,0.001,99829.0,99828.0,5.33403159]
[1746701693130,0.003,99829.0,99828.0,5.33403159]
[1746701693949,0.003,99829.0,99828.0,0.57154459]
[1746701694189,0.002,99829.0,99828.0,9.13623159]
[1746701694511,0.003,99829.0,99828.0,9.13623159]
[1746701695922,0.003,99829.0,99828.0,5.47703159]
[1746701696084,0.003,99829.0,99828.0,4.83723159]
[1746701696295,0.003,99829.0,99828.0,4.79743159]
[1746701696536,0.003,99829.0,99828.0,4.73133159]
[1746701697332,0.21034418,99837.0,99834.0,0.20033237]
[1746701698441,0.21234418,99837.0,99834.0,0.20033237]
[1746701698850,0.20032881,99836.0,99834.0,0.20033237]
[1746701699708,0.01501632,99837.0,99834.0,0.20033237]
[1746701699909,0.01501632,99837.0,99833.0,0.01001672]
[1746701699910,0.21234358,99837.0,99833.0,0.01001672]
[1746701700286,0.003,99836.0,99835.0,0.20033054]
[1746701700488,0.003,99836.0,99835.0,6.91300954]
[1746701700690,0.002,99845.0,99844.0,0.20031248]
[1746701700936,0.00206857,99845.0,99844.0,0.82773848]
[1746701701463,0.00206857,99845.0,99844.0,0.84645883]
[1746701702198,0.00406857,99845.0,99844.0,0.84645883]
[1746701702623,0.00606857,99845.0,99844.0,0.84645883]
[1746701703031,0.00606857,99845.0,99844.0,0.87765883]
[1746701704047,0.00206857,99845.0,99844.0,0.87765883]
[1746701704248,0.00306857,99845.0,99844.0,0.87765883]
[1746701704419,0.00306857,99845.0,99844.0,5.81910693]
[1746701704619,0.00306857,99845.0,99844.0,0.31158093]
[1746701705069,0.00306857,99845.0,99844.0,9.16994193]
[1746701705857,0.00206857,99845.0,99844.0,7.24018893]
[1746701706472,0.00206857,99845.0,99844.0,7.25608893]
[1746701707333,0.00206857,99845.0,99844.0,7.26543775]
[1746701707560,0.00206857,99845.0,99844.0,7.27244852]
[1746701709872,0.00206857,99845.0,99844.0,7.21110042]
[1746701710638,0.00206857,99845.0,99844.0,7.20408965]
[1746701711519,0.00206857,99845.0,99844.0,7.19474083]
[1746701712746,0.00206857,99845.0,99844.0,8.90884083]
[1746701713562,0.00206857,99845.0,99844.0,8.89294083]
[1746701713837,0.00206857,99845.0,99844.0,8.87794083]
[1746701714042,0.17211737,99853.0,99849.0,0.21031654]
[1746701714288,0.01001462,99854.0,99851.0,0.20029787]
[1746701714506,0.21030758,99854.0,99850.0,0.22903456]
[1746701714768,0.20029466,99853.0,99851.0,0.01872035]
[1746701715379,0.20029466,99853.0,99852.0,0.01872035]
[1746701715578,0.20129466,99853.0,99852.0,0.01872035]
[1746701715941,0.20029466,99853.0,99852.0,0.01872035]
[1746701716368,0.20229466,99853.0,99852.0,0.01872035]
[1746701716970,0.01101462,99854.0,99852.0,0.01872035]
[1746701717181,0.21030722,99854.0,99852.0,0.01872035]
[1746701717372,0.21030722,99854.0,99853.0,0.01872035]
[1746701717373,0.20670708,99854.0,99853.0,0.01872035]
[1746701718341,0.001,99859.0,99853.0,0.01872035]
[1746701718550,0.00104565,99859.0,99857.0,0.2002864]
[1746701718753,0.00104565,99859.0,99856.0,0.21030067]
[1746701718955,0.00104565,99859.0,99858.0,0.01869327]
[1746701719209,0.20132921,99859.0,99857.0,0.01869327]
[1746701719405,0.20132921,99859.0,99858.0,0.01869327]
[1746701720370,0.20332921,99859.0,99858.0,0.01869327]
[1746701720950,0.20532921,99859.0,99858.0,0.02803931]
[1746701721111,0.00304565,99859.0,99858.0,0.02803931]
[1746701721651,0.00504565,99859.0,99858.0,0.02803931]
[1746701722204,0.00504565,99859.0,99858.0,0.38383931]
[1746701722427,0.00504565,99859.0,99858.0,8.62632631]
[1746701722952,0.00304565,99859.0,99858.0,8.63333433]
[1746701723159,0.00104565,99859.0,99858.0,8.63333433]
[1746701724077,0.00104565,99859.0,99858.0,6.59973433]
[1746701724285,0.00104565,99859.0,99858.0,5.07343433]
[1746701724686,0.00104565,99859.0,99858.0,5.0809743]
[1746701724887,0.00104565,99859.0,99858.0,4.5770743]
[1746701725050,0.00104565,99859.0,99858.0,2.9070173]
[1746701726607,0.00104565,99859.0,99858.0,0.3825873]
[1746701726953,0.00104565,99859.0,99858.0,8.9631743]
[1746701727364,0.00104565,99859.0,99858.0,8.9797743]
[1746701728385,0.00104565,99859.0,99858.0,8.9472743]
[1746701729542,0.00104565,99859.0,99858.0,0.3825873]
[1746701729936,0.00104565,99859.0,99858.0,8.9472743]
[1746701730913,0.00104565,99859.0,99858.0,8.72164922]
[1746701731302,0.00104565,99859.0,99858.0,7.695371]
[1746701733594,0.00104565,99859.0,99858.0,7.7029518]
[1746701735305,0.00104565,99859.0,99858.0,8.0429518]
[1746701735508,0.00104565,99859.0,99858.0,8.0593518]
[1746701735803,0.00104565,99859.0,99858.0,8.0757518]
[1746701737403,0.00104565,99859.0,99858.0,8.0593518]
[1746701738014,0.00104565,99859.0,99858.0,8.0747518]
[1746701741341,0.00104565,99859.0,99858.0,8.0593518]
[1746701741683,0.00104565,99859.0,99858.0,8.0429518]
[1746701743139,0.00104565,99859.0,99858.0,8.06164505]
[1746701743753,0.2002522,99875.0,99869.0,0.21027545]
[1746701743958,0.01001251,99875.0,99869.0,0.21027545]
[1746701744183,0.01001251,99875.0,99872.0,0.20025498]
[1746701744350,0.031,99874.0,99872.0,0.20025498]
[1746701744567,0.031,99873.0,99872.0,0.20025498]
[1746701744768,0.031,99873.0,99872.0,0.21366907]
[1746701744968,0.031,99873.0,99872.0,0.23236883]
[1746701745801,0.031,99873.0,99872.0,0.24172021]
[1746701746223,0.034,99873.0,99872.0,0.24172021]
[1746701746646,0.036,99873.0,99872.0,0.24172021]
[1746701747595,0.036,99873.0,99872.0,0.24873511]
[1746701748229,0.005,99873.0,99872.0,0.24873511]
[1746701749247,0.005,99873.0,99872.0,0.79883811]
[1746701749421,0.003,99873.0,99872.0,0.24873511]
[1746701749623,0.005,99873.0,99872.0,0.04848013]
[1746701749823,0.0337,99873.0,99872.0,0.04848013]
[1746701750179,0.002,99873.0,99872.0,2.57053113]
[1746701750317,0.002,99873.0,99872.0,2.54848713]
[1746701751127,0.004,99873.0,99872.0,2.54848713]
[1746701752321,0.004,99873.0,99872.0,7.67072113]
[1746701752643,0.0161,99902.0,99887.0,0.54022625]
[1746701752846,0.01001041,99896.0,99887.0,0.3470149]
[1746701753028,0.01001021,99898.0,99887.0,7.1410019]
[1746701753231,0.0161,99902.0,99887.0,7.16905304]
[1746701753578,0.01001061,99894.0,99887.0,7.16905304]
[1746701753782,0.01001031,99897.0,99887.0,7.17005304]
[1746701753986,0.01201051,99895.0,99887.0,7.17005304]
[1746701754367,0.002,99895.0,99887.0,6.19533504]
[1746701754745,0.01001061,99894.0,99887.0,2.95620904]
[1746701754951,0.002,99895.0,99887.0,2.95620904]
[1746701755176,0.01001061,99894.0,99887.0,2.95620904]
[1746701755596,0.01201051,99895.0,99887.0,2.95620904]
[1746701755801,0.002,99895.0,99887.0,2.95720904]
[1746701756230,0.01001061,99894.0,99887.0,2.95720904]
[1746701756446,0.01001061,99894.0,99887.0,1.50390904]
[1746701757605,0.01001071,99893.0,99887.0,1.50390904]
[1746701757845,0.01001061,99894.0,99887.0,1.50390904]
[1746701758668,0.01201051,99895.0,99887.0,1.50390904]
[1746701758867,0.01201051,99895.0,99887.0,1.49689414]
[1746701759131,45.06711291,99888.0,99887.0,1.15689414]
[1746701760448,45.06711291,99888.0,99887.0,0.43555114]
[1746701760790,45.06711291,99888.0,99887.0,8.11237714]
[1746701761165,45.06711291,99888.0,99887.0,7.92703214]
[1746701761794,45.06711291,99888.0,99887.0,5.31348614]
[1746701764687,45.06711291,99888.0,99887.0,5.66048289]
[1746701764887,45.06711291,99888.0,99887.0,5.67678289]
[1746701765088,45.06711291,99888.0,99887.0,5.69258289]
[1746701767565,45.06711291,99888.0,99887.0,5.66048289]
[1746701767981,45.06711291,99888.0,99887.0,5.65948289]
[1746701768191,45.06011291,99888.0,99887.0,5.65948289]
[1746701768386,45.06011291,99888.0,99887.0,5.65848289]
[1746701768675,45.06011291,99888.0,99887.0,5.69018289]
[1746701768847,45.06011291,99888.0,99887.0,5.69218289]
[1746701769060,45.06011291,99888.0,99887.0,5.69418289]
[1746701770068,45.0551063,99888.0,99887.0,5.69418289]
[1746701770720,45.0551063,99888.0,99887.0,5.79484981]
[1746701770935,45.0551063,99888.0,99887.0,5.85344941]
[1746701771075,45.0551063,99888.0,99887.0,6.19484981]
[1746701771282,45.0551063,99888.0,99887.0,0.91141481]
[1746701771480,45.0551063,99888.0,99887.0,10.96141481]
[1746701771891,45.00503852,99888.0,99887.0,11.02001441]
[1746701772076,44.95497074,99888.0,99887.0,11.01801441]
[1746701772274,44.94926073,99888.0,99887.0,11.04668089]
[1746701772478,44.81059389,99888.0,99887.0,11.04968089]
[1746701772701,44.601176,99888.0,99887.0,11.04968089]
[1746701772899,44.40958069,99888.0,99887.0,11.01601441]
[1746701773113,44.35962069,99888.0,99887.0,11.04868089]
[1746701773311,44.30955291,99888.0,99887.0,11.05068089]
[1746701773515,44.25948513,99888.0,99887.0,11.05068089]
[1746701773714,44.25278513,99888.0,99887.0,11.05068089]
[1746701773921,44.20357513,99888.0,99887.0,11.43831441]
[1746701774147,44.17213514,99888.0,99887.0,11.46898089]
[1746701774361,44.17213514,99888.0,99887.0,11.46698089]
[1746701774560,44.17213514,99888.0,99887.0,11.46998089]
[1746701774777,44.17213514,99888.0,99887.0,11.46798089]
[1746701775020,44.17213514,99888.0,99887.0,11.37571481]
[1746701775224,44.17213514,99888.0,99887.0,11.38471481]
[1746701775426,44.16513514,99888.0,99887.0,11.38471481]
[1746701775671,44.16513514,99888.0,99887.0,8.64461189]
[1746701775788,44.16513514,99888.0,99887.0,2.89768689]
[1746701775989,44.16513514,99888.0,99887.0,2.89368689]
[1746701776191,44.16513514,99888.0,99887.0,3.23368689]
[1746701776397,44.16513514,99888.0,99887.0,3.23868689]
[1746701776609,44.16513514,99888.0,99887.0,3.27008689]
[1746701777053,44.16513514,99888.0,99887.0,3.23868689]
[1746701777268,44.16513514,99888.0,99887.0,3.23368689]
[1746701777668,44.16513514,99888.0,99887.0,3.23568689]
[1746701777825,44.16513514,99888.0,99887.0,3.23068689]
[1746701778238,44.16513514,99888.0,99887.0,3.23168689]
[1746701778432,44.26580206,99888.0,99887.0,3.23268689]
[1746701778882,44.26580206,99888.0,99887.0,2.87688689]
[1746701779067,44.19683514,99888.0,99887.0,2.87688689]
[1746701779254,44.19683514,99888.0,99887.0,2.47688689]
[1746701779783,44.19683514,99888.0,99887.0,2.47588689]
[1746701780226,44.16513514,99888.0,99887.0,2.47588689]
[1746701781044,44.16613514,99888.0,99887.0,2.47288689]
[1746701781254,44.16713514,99888.0,99887.0,2.48808689]
[1746701781607,44.16513514,99888.0,99887.0,2.48808689]
[1746701781806,44.16513514,99888.0,99887.0,2.47288689]
[1746701782370,44.15813514,99888.0,99887.0,2.47488689]
[1746701782882,44.15813514,99888.0,99887.0,2.50708689]
[1746701783489,44.15813514,99888.0,99887.0,2.60775381]
[1746701783849,44.15813514,99888.0,99887.0,2.64407361]
[1746701784052,44.15813514,99888.0,99887.0,2.63607686]
[1746701784372,44.15813514,99888.0,99887.0,2.63707686]
[1746701784575,44.15813514,99888.0,99887.0,2.60075706]
[1746701784778,44.15813514,99888.0,99887.0,2.46789014]
[1746701785165,44.19013514,99888.0,99887.0,2.40764439]
[1746701785372,44.19013514,99888.0,99887.0,2.41464785]
[1746701785574,44.19013514,99888.0,99887.0,2.23306785]
[1746701785782,44.19013514,99888.0,99887.0,1.11149763]
[1746701785983,44.19013514,99888.0,99887.0,1.11049763]
[1746701786189,44.19013514,99888.0,99887.0,1.17150504]
[1746701787080,44.19013514,99888.0,99887.0,1.16950504]
[1746701787501,44.19213514,99888.0,99887.0,1.16950504]
[1746701788299,44.19213514,99888.0,99887.0,1.10849763]
[1746701788834,44.19213514,99888.0,99887.0,1.12717433]
[1746701789455,44.18513514,99888.0,99887.0,1.12717433]
[1746701789867,44.15313514,99888.0,99887.0,1.12717433]
[1746701790738,44.15313514,99888.0,99887.0,1.13417805]
[1746701791726,44.15313514,99888.0,99887.0,0.57525805]
[1746701792102,44.1531808,99888.0,99887.0,9.22063005]
[1746701792305,44.1531808,99888.0,99887.0,9.18757205]
[1746701792505,44.1531808,99888.0,99887.0,8.71570505]
[1746701792989,44.1691808,99888.0,99887.0,5.92680905]
[1746701793200,44.1853808,99888.0,99887.0,5.92680905]
[1746701793406,44.1853808,99888.0,99887.0,1.22460905]
[1746701794048,44.1853808,99888.0,99887.0,1.18240905]
[1746701794269,44.1853808,99888.0,99887.0,1.17540533]
[1746701794472,44.1853808,99888.0,99887.0,0.97390533]
[1746701795952,44.1853808,99888.0,99887.0,0.79682208]
[1746701795953,44.28604772,99888.0,99887.0,0.79682208]
[1746701796105,44.1853808,99888.0,99887.0,0.76075508]
[1746701796309,44.38560505,99888.0,99887.0,0.36802808]
[1746701796517,44.38560505,99888.0,99887.0,0.02802808]
[1746701796878,44.1853808,99888.0,99887.0,0.02802808]
[1746701797101,44.1853808,99888.0,99887.0,0.00935138]
[1746701797305,44.38560505,99888.0,99887.0,0.00935138]
[1746701797506,44.48627197,99888.0,99887.0,0.00935138]
[1746701797706,44.38560505,99888.0,99887.0,0.00935138]
[1746701800818,0.21024022,99886.0,99883.0,0.00935138]
[1746701801027,0.0314,99884.0,99883.0,2.52613138]
[1746701801442,0.23163226,99884.0,99883.0,2.48104538]
[1746701801646,0.0314,99884.0,99883.0,2.48104538]
[1746701804692,0.0314,99884.0,99883.0,2.471694]
[1746701805595,0.0321,99883.0,99882.0,2.774269]
[1746701806713,0.0321,99883.0,99882.0,2.78361034]
[1746701807317,0.0321,99883.0,99882.0,2.78342694]
[1746701807542,0.0321,99883.0,99882.0,0.00934134]
[1746701807745,0.0321,99883.0,99882.0,3.25751234]
[1746701808225,0.0321,99883.0,99882.0,3.07215934]
[1746701808425,0.0321,99883.0,99882.0,3.02807534]
[1746701808632,0.0321,99883.0,99882.0,3.02774337]
[1746701809279,0.02661151,99885.0,99882.0,3.23798995]
[1746701809459,0.0166,99885.0,99883.0,3.536717]
[1746701809669,0.0321,99885.0,99883.0,3.536717]
[1746701809872,0.21024149,99886.0,99884.0,3.039774]
[1746701810032,0.21024149,99886.0,99883.0,3.076844]
[1746701810234,0.20023094,99885.0,99883.0,3.076844]
[1746701810467,0.23123094,99885.0,99883.0,3.076844]
[1746701810870,0.031,99885.0,99883.0,3.076844]
[1746701811070,0.031,99885.0,99883.0,3.27707774]
[1746701811353,0.031,99885.0,99884.0,3.207092]
[1746701811550,0.031,99885.0,99884.0,3.039774]
[1746701811677,44.1511808,99888.0,99885.0,0.01001151]
[1746701811881,44.1511808,99888.0,99886.0,0.20022826]
[1746701812109,44.16119201,99888.0,99885.0,0.01001151]
[1746701812314,44.19269201,99888.0,99885.0,0.01001151]
[1746701812519,44.39291698,99888.0,99885.0,0.01001151]
[1746701812913,44.1511808,99888.0,99885.0,0.2102407]
[1746701813318,44.35140551,99888.0,99885.0,0.2102407]
[1746701813494,44.36241672,99888.0,99885.0,0.2102407]
[1746701813701,44.37241672,99888.0,99885.0,0.2102407]
[1746701813895,44.37341672,99888.0,99885.0,0.2102407]
[1746701814696,44.1631808,99888.0,99886.0,0.20022758]
[1746701815237,44.1631808,99888.0,99885.0,0.2102407]
[1746701815843,0.01001131,99887.0,99883.0,0.20023265]
[1746701816068,0.2252384,99887.0,99884.0,0.20023183]
[1746701816264,0.2406384,99887.0,99884.0,0.20023183]
[1746701816464,0.04041131,99887.0,99884.0,0.21024344]
[1746701816834,0.24063813,99887.0,99884.0,0.21024344]
[1746701816969,0.24063813,99887.0,99884.0,0.20979331]
[1746701817569,0.24163813,99887.0,99884.0,0.20979331]
[1746701818742,0.24163813,99887.0,99883.0,0.01001171]
[1746701818948,0.24163813,99887.0,99884.0,3.155995]
[1746701819081,0.24163813,99887.0,99884.0,3.125938]
[1746701819902,0.21123813,99887.0,99884.0,3.125938]
[1746701820323,0.22783813,99887.0,99884.0,3.125938]
[1746701820529,0.20022879,99886.0,99884.0,3.125938]
[1746701820836,0.23272879,99886.0,99885.0,0.00935212]
[1746701821584,0.0325,99886.0,99885.0,0.00935212]
[1746701821732,0.0335,99886.0,99885.0,0.00935212]
[1746701822991,0.05225887,99886.0,99885.0,0.00935212]
[1746701823193,0.01975887,99886.0,99885.0,0.00935212]
[1746701823541,0.02075887,99886.0,99884.0,0.20023176]
[1746701823746,0.02175887,99886.0,99884.0,0.20023176]
[1746701823946,0.003,99886.0,99884.0,0.20023176]
[1746701824375,0.002,99886.0,99883.0,0.01001171]
[1746701824578,0.002,99886.0,99884.0,3.056806]
[1746701824800,44.37141663,99888.0,99884.0,3.26704922]
[1746701825130,0.001,99886.0,99884.0,0.21024322]
[1746701825485,0.0187687,99885.0,99884.0,0.21024322]
[1746701825895,0.001,99886.0,99884.0,3.54758222]
[1746701826107,0.001,99886.0,99884.0,0.21024322]
[1746701826273,0.21023776,99887.0,99885.0,0.00936479]
[1746701826473,0.001,99886.0,99885.0,0.00936479]
[1746701826919,0.21023776,99887.0,99885.0,0.00936479]
[1746701827224,0.001,99886.0,99885.0,0.00936479]
[1746701827370,0.01877081,99886.0,99885.0,0.20959435]
[1746701827576,0.01877081,99886.0,99885.0,0.54959435]
[1746701827771,0.01977081,99886.0,99885.0,0.54022956]
[1746701828014,0.001,99886.0,99885.0,0.54022956]
[1746701828438,0.001,99886.0,99885.0,0.55602956]
[1746701828590,0.001,99886.0,99885.0,0.57212956]
[1746701828796,0.001,99886.0,99885.0,5.62212956]
[1746701828984,0.001,99886.0,99885.0,10.62212956]
[1746701829489,0.001,99886.0,99885.0,10.62781307]
[1746701829948,44.1611808,99888.0,99887.0,0.20022625]
[1746701830148,44.1611808,99888.0,99887.0,0.57202625]
[1746701830301,44.1611808,99888.0,99887.0,10.62771834]
[1746701831070,44.1611808,99888.0,99887.0,10.63707506]
[1746701831494,44.1621808,99888.0,99887.0,10.63707506]
[1746701834024,44.1621808,99888.0,99887.0,10.73774198]
[1746701834225,44.1611808,99888.0,99887.0,10.73774198]
[1746701834441,44.1611808,99888.0,99887.0,11.13774198]
[1746701834724,44.1611808,99888.0,99887.0,11.13874198]
[1746701835855,44.1611808,99888.0,99887.0,11.13304989]
[1746701836552,44.1541808,99888.0,99887.0,1.08204989]
[1746701836829,44.1541808,99888.0,99887.0,11.13304989]
[1746701837409,44.1541808,99888.0,99887.0,11.12369317]
[1746701839210,44.1541808,99888.0,99887.0,11.13303439]
[1746701840713,44.1541808,99888.0,99887.0,10.93280814]
[1746701840925,44.1541808,99888.0,99887.0,11.13303439]
[1746701843742,44.1471808,99888.0,99887.0,11.13303439]
[1746701848506,44.1471808,99888.0,99887.0,11.11693439]
[1746701849627,44.1471808,99888.0,99887.0,11.13303439]
[1746701850850,44.1401808,99888.0,99887.0,11.13303439]
[1746701851129,44.1401808,99888.0,99887.0,11.15172701]
[1746701851859,44.10495081,99888.0,99887.0,11.15172701]
[1746701852897,44.10495081,99888.0,99887.0,11.15033201]
[1746701853449,44.10495081,99888.0,99887.0,11.15233201]
[1746701853593,44.10495081,99888.0,99887.0,11.15033201]
[1746701853794,44.10495081,99888.0,99887.0,11.15233201]
[1746701854019,44.10495081,99888.0,99887.0,11.15533201]
[1746701855924,44.10495081,99888.0,99887.0,6.10533201]
[1746701856132,44.10495081,99888.0,99887.0,6.15533201]
[1746701856327,44.10495081,99888.0,99887.0,11.15533201]
[1746701856734,44.05990081,99888.0,99887.0,11.15533201]
[1746701857060,44.05990081,99888.0,99887.0,11.16987286]
[1746701857512,44.05990081,99888.0,99887.0,11.57363201]
[1746701857741,44.05990081,99888.0,99887.0,11.54183201]
[1746701857958,44.05290081,99888.0,99887.0,11.54884639]
[1746701858917,44.05290081,99888.0,99887.0,11.54183201]